fUSD/lending_fUSD_20260202
["ID","MTS","AMOUNT","RATE_DAILY","PERIOD"]
[404280322,1770027045048,-1302.06275666,0.00016438,2]
[404280323,1770027045061,-1302.06275666,0.00016438,2]
[404280324,1770027045073,-1302.06275666,0.00016438,2]
[404280325,1770027045085,-1302.06275666,0.00016438,2]
[404280327,1770027045097,-1302.06275666,0.00016438,2]
[404280329,1770027045108,-1302.06275666,0.00016438,2]
[404280331,1770027045119,-1302.06275666,0.00016438,2]
[404280332,1770027045131,-1302.06275666,0.00016438,2]
[404280333,1770027045143,-1302.06275666,0.00016438,2]
[404280334,1770027045155,-1302.06275666,0.00016438,2]
[404280335,1770027045167,-1302.06275666,0.00016438,2]
[404280336,1770027045177,-1302.06275666,0.00016438,2]
[404280337,1770027045189,-1302.06275666,0.00016438,2]
[404280338,1770027045201,-1302.06275666,0.00016438,2]
[404280339,1770027045212,-1302.06275666,0.00016438,2]
[404280340,1770027045224,-1302.06275666,0.00016438,2]
[404280341,1770027045235,-1302.06275666,0.00016438,2]
[404280342,1770027045247,-1302.06275666,0.00016438,2]
[404280343,1770027045259,-1302.06275666,0.00016438,2]
[404280344,1770027045270,-1302.06275666,0.00016438,2]
[404280345,1770027045281,-1302.06275666,0.00016438,2]
[404280346,1770027045292,-1302.06275666,0.00016438,2]
[404280347,1770027045303,-1302.06275666,0.00016438,2]
[404280348,1770027045314,-1302.06275666,0.00016438,2]
[404280349,1770027045325,-1302.06275666,0.00016438,2]
[404280350,1770027045337,-1302.06275666,0.00016438,2]
[404280351,1770027045348,-1302.06275666,0.00016438,2]
[404280352,1770027045359,-1302.06275666,0.00016438,2]
[404280353,1770027045371,-1302.06275666,0.00016438,2]
[404280354,1770027045383,-1302.06275666,0.00016438,2]
[404280355,1770027045395,-1302.06275666,0.00016438,2]
[404280356,1770027045406,-1302.06275666,0.00016438,2]
[404280357,1770027045415,-1302.06275666,0.00016438,2]
[404280358,1770027045425,-1302.06275666,0.00016438,2]
[404280359,1770027045434,-1302.06275666,0.00016438,2]
[404280360,1770027045443,-1302.06275666,0.00016438,2]
[404280361,1770027045452,-1302.06275666,0.00016438,2]
[404280362,1770027045461,-486.88,0.00016438,2]
[404280363,1770027045470,-250.55733734,0.00016438,2]
[404280364,1770027045728,-800.78453244,0.00016438,2]
[404280365,1770027045749,-500.0,0.00016453,2]
[404280366,1770027045765,-715.94,0.00016515,2]
[404280367,1770027045776,-427.40508532,0.00016547,2]
[404280368,1770027045787,-1500.0,0.00016568,2]
[404280369,1770027045797,-345.31167706,0.00016568,2]
[404280370,1770027045807,-1500.0,0.00016568,2]
[404280371,1770027045817,-165.40489721,0.00016568,2]
[404280372,1770027045828,-1315.28060531,0.00016568,2]
[404280373,1770027045841,-1500.0,0.00016568,2]
[404280374,1770027045851,-1500.0,0.00016568,2]
[404280375,1770027045863,-545.1454494,0.00016568,2]
[404280376,1770027045874,-1500.0,0.00016568,2]
[404280377,1770027045883,-1500.0,0.00016568,2]
[404280378,1770027045894,-1500.0,0.00016568,2]
[404280379,1770027045905,-1500.0,0.00016568,2]
[404280380,1770027045915,-1643.18674336,0.00016568,2]
[404280381,1770027045925,-1500.0,0.00016568,2]
[404280382,1770027045935,-1206.68040771,0.00016568,2]
[404280383,1770027045944,-1500.0,0.00016568,2]
[404280384,1770027045954,-619.84098311,0.00016568,2]
[404280385,1770027045963,-1500.0,0.00016568,2]
[404280386,1770027045973,-1006.20015718,0.00016568,2]
[404280387,1770027045982,-1500.0,0.00016568,2]
[404280388,1770027045991,-195.13,0.00016712,2]
[404280389,1770027046002,-163.0,0.0001672,2]
[404280390,1770027046012,-14898.8753547,0.00016754,2]
[404280391,1770027046021,-225.18697532,0.00016798,2]
[404280392,1770027046030,-1536.04360649,0.00016798,2]
[404280393,1770027046039,-225.18697532,0.00016798,2]
[404280395,1770027046048,-187.78006525,0.00016798,2]
[404280396,1770027046058,-924.60877284,0.00016798,2]
[404280397,1770027046067,-13996.31710134,0.00016813,2]
[404280398,1770027046076,-300.0,0.00017,2]
[404280399,1770027046087,-151.7199758,0.00017,2]
[404280400,1770027046098,-500.0,0.00017001,2]
[404280401,1770027046107,-1600.0,0.00017008,2]
[404280402,1770027046118,-839.0,0.0001704,2]
[404280403,1770027046127,-163.0,0.0001704,2]
[404280404,1770027046140,-839.0,0.0001704,2]
[404280405,1770027046149,-163.0,0.0001704,2]
[404280406,1770027046159,-3292.0,0.00017048,2]
[404280407,1770027046168,-334.5472959,0.00017071,2]
[404280408,1770027046178,-715.94,0.00017112,2]
[404280409,1770027046187,-1628.18837233,0.00017116,2]
[404280410,1770027046197,-2136.8475123,0.00017116,2]
[404280411,1770027046207,-2000.0,0.00017116,2]
[404280412,1770027046216,-1256.98671009,0.00017116,2]
[404280413,1770027046226,-1488.36339388,0.00017116,2]
[404280414,1770027046236,-508.230722,0.00017116,2]
[404280415,1770027046246,-474.64879752,0.00017116,2]
[404280417,1770027046256,-1947.23523297,0.00017116,2]
[404280418,1770027046265,-1502.03881526,0.00017116,2]
[404280419,1770027046274,-458.07275487,0.00017116,2]
[404280420,1770027046284,-1716.63993214,0.00017116,2]
[404280421,1770027046294,-2000.0,0.00017116,2]
[404280422,1770027046304,-1852.42,0.00017132,2]
[404280423,1770027046313,-500.0,0.00017139,2]
[404280424,1770027046323,-1330.2,0.00017202,2]
[404280425,1770027046333,-427.40508532,0.00017223,2]
[404280426,1770027046342,-163.38,0.00017282,2]
[404280427,1770027046352,-175.102,0.00017323,2]
[404280428,1770027046361,-2176.891,0.00017323,2]
[404280429,1770027046370,-14898.8753547,0.00017323,2]
[404280430,1770027046379,-159.99318318,0.00017341,2]
[404280431,1770027046389,-233.51889341,0.00017346,2]
[404280432,1770027046398,-1592.87721993,0.00017346,2]
[404280433,1770027046408,-233.51889341,0.00017346,2]
[404280434,1770027046417,-194.72792766,0.00017346,2]
[404280435,1770027046426,-958.81929743,0.00017346,2]
[404280436,1770027046436,-13996.31710134,0.00017348,2]
[404280437,1770027046445,-163.0,0.0001736,2]
[404280438,1770027046455,-839.0,0.0001736,2]
[404280439,1770027046465,-839.0,0.0001736,2]
[404280440,1770027046475,-163.0,0.00017365,2]
[404280441,1770027046485,-173.92,0.00017457,2]
[404280442,1770027046494,-502.14,0.000175,3]
[404280443,1770027046503,-500.0,0.00017549,2]
[404280444,1770027046513,-839.0,0.00017555,2]
[404280445,1770027046522,-772.93,0.00017622,2]
[404280446,1770027046532,-1002.53462592,0.00017664,2]
[404280447,1770027046541,-504.86417643,0.00017664,2]
[404280448,1770027046551,-163.0,0.0001768,2]
[404280449,1770027046560,-163.0,0.0001768,2]
[404280450,1770027046569,-839.0,0.0001768,2]
[404280451,1770027046579,-163.0,0.00017685,2]
[404280452,1770027046589,-715.94,0.00017709,2]
[404280453,1770027046601,-10091.57601831,0.0001771,2]
[404280454,1770027046611,-25000.0,0.00017724,3]
[404280455,1770027046621,-25000.0,0.00017733,3]
[404280456,1770027046631,-25000.0,0.00017742,3]
[404280457,1770027046641,-385.0,0.00017748,2]
[404280458,1770027046650,-25000.0,0.0001775,3]
[404280459,1770027046659,-282.06,0.00017752,2]
[404280460,1770027046668,-25000.0,0.00017759,3]
[404280461,1770027046677,-25000.0,0.00017768,3]
[404280462,1770027046687,-2835.0,0.0001777,2]
[404280463,1770027046696,-25000.0,0.00017777,3]
[404280464,1770027046705,-25000.0,0.00017786,3]
[404280465,1770027046714,-25000.0,0.00017794,3]
[404280466,1770027046723,-25000.0,0.00017803,3]
[404280467,1770027046732,-25000.0,0.00017812,3]
[404280468,1770027046742,-25000.0,0.00017821,3]
[404280469,1770027046751,-2393.7410466,0.00017829,2]
[404280470,1770027046760,-3238.8147,0.00017829,2]
[404280471,1770027046769,-25000.0,0.0001783,3]
[404280472,1770027046778,-25000.0,0.00017838,3]
[404280473,1770027046787,-25000.0,0.00017847,3]
[404280474,1770027046796,-25000.0,0.00017856,3]
[404280475,1770027046806,-500.0,0.00017863,2]
[404280476,1770027046815,-25000.0,0.00017865,3]
[404280477,1770027046829,-25000.0,0.00017874,3]
[404280479,1770027046838,-163.0,0.00017875,2]
[404280481,1770027046848,-386.0,0.00017882,2]
[404280483,1770027046857,-13996.31710134,0.00017882,2]
[404280485,1770027046868,-25000.0,0.00017882,3]
[404280487,1770027046877,-25000.0,0.00017891,3]
[404280489,1770027046887,-242.15909246,0.00017894,2]
[404280491,1770027046897,-1651.81367706,0.00017894,2]
[404280493,1770027046906,-242.15909246,0.00017894,2]
[404280494,1770027046915,-201.93286099,0.00017894,2]
[404280496,1770027046924,-994.29561144,0.00017894,2]
[404280497,1770027046934,-25000.0,0.000179,3]
[404280498,1770027046943,-17205.90121961,0.000179,3]
[404280499,1770027046953,-427.40508532,0.000179,2]
[404280500,1770027046963,-1330.2,0.00017966,2]
[404280501,1770027046973,-353.93387854,0.00017974,2]
[404280502,1770027046982,-151.0,0.00017978,2]
[404280503,1770027046992,-13426.8896988,0.00017981,2]
[404280504,1770027047002,-462572.4558139,0.00017981,2]
[404280505,1770027047011,-98241.9762592,0.00017981,2]
[404280506,1770027047021,-500.0,0.00017982,2]
[404280507,1770027047031,-306.04672599,0.0001799,2]
[404280508,1770027047041,-5800.0,0.00017992,2]
[404280509,1770027047051,-151.0,0.00017997,2]
[404280510,1770027047060,-248.17115062,0.00017999,2]
[404280511,1770027047070,-299.809,0.00017999,2]
[404280512,1770027047080,-300.0,0.00017999,2]
[404280513,1770027047092,-300.0,0.00017999,2]
[404280514,1770027047103,-300.0,0.00017999,2]
[404280515,1770027047113,-666.0,0.00017999,2]
[404280516,1770027047123,-300.0,0.00017999,2]
[404280517,1770027047140,-2754884.91711047,0.00018,2]
[404280519,1770027047363,-195599.27229925,0.00018,2]
[404280520,1770027047656,-1350.0,0.00013369,2]
[404280521,1770027047674,-1110.0,0.00013395,2]
[404280522,1770027047687,-151.0,0.00014679,2]
[404280523,1770027047697,-596037.31065344,0.00018,2]
[404280524,1770027047706,-7500.35840853,0.00018,2]
[404280525,1770027047715,-109514.78915317,0.00018,2]
[404280526,1770027047724,-355076.91677216,0.00018,2]
[404280527,1770027047795,-778400.00000035,0.00018,2]
[404280528,1770027047851,-861.6349995,0.00017892,2]
[404280529,1770027047865,-14037.2403552,0.00017892,2]
[404280530,1770027047876,-213615.78260332,0.00018,2]
[404280531,1770027047898,-2125.26387431,0.00018,2]
[404280532,1770027047910,-1133.17562534,0.00018,2]
[404280546,1770027102210,1497.0,0.000136,5]
[404280549,1770027300998,-5000.01,0.0001271,2]
[404280550,1770027301117,-5000.01,0.0001271,2]
[404280551,1770027301329,-5000.01,0.0001271,2]
[404280552,1770027301434,-5000.01,0.0001271,2]
[404280553,1770027301550,-5000.01,0.0001271,2]
[404280554,1770027301672,-300.0,0.00012709,2]
[404280555,1770027301708,-4400.01,0.0001271,2]
[404280556,1770027301794,-1962.8485,0.0001271,2]
[404280557,1770027301816,-1074.313,0.0001271,2]
[404280558,1770027301918,-250.0,0.00012744,2]
[404280559,1770027301945,-300.0,0.00012776,2]
[404280560,1770027301973,-304.75672637,0.00012809,2]
[404280561,1770027302216,-500.0,0.00012809,2]
[404280562,1770027302249,-500.0,0.00012809,2]
[404280563,1770027302280,-500.0,0.00012809,2]
[404280564,1770027302391,-1200.0,0.00012709,2]
[404280565,1770027302421,-500.0,0.00012809,2]
[404280566,1770027302452,-500.0,0.00012809,2]
[404280567,1770027302484,-100.01,0.00012809,2]
[404280568,1770027302669,-200.0,0.00012809,2]
[404280569,1770027302685,-199.99,0.00012809,2]
[404280570,1770027302694,-300.01,0.00012809,2]
[404280571,1770027303613,-300.0,0.00012709,2]
[404280572,1770027303641,-150.0,0.00012808,2]
[404280573,1770027303673,-199.99,0.00012809,2]
[404280574,1770027303711,-500.0,0.00012809,2]
[404280575,1770027303742,-500.0,0.00012809,2]
[404280576,1770027303771,-500.0,0.00012809,2]
[404280577,1770027303800,-200.03,0.00012809,2]
[404280578,1770027303890,-299.97,0.00012809,2]
[404280579,1770027303925,-500.0,0.00012809,2]
[404280580,1770027303957,-443.62909288,0.00012809,2]
[404280581,1770027303989,-500.0,0.00012809,2]
[404280582,1770027304020,-500.0,0.00012809,2]
[404280583,1770027304052,-12.81181424,0.00012809,2]
[404280584,1770027304161,-487.18818576,0.00012809,2]
[404280585,1770027304193,-500.0,0.00012809,2]
[404280586,1770027304226,-500.0,0.00012809,2]
[404280587,1770027304258,-500.0,0.00012809,2]
[404280588,1770027304289,-500.0,0.00012809,2]
[404280589,1770027304524,-299.97,0.00012809,2]
[404280590,1770027304548,-200.03,0.00012809,2]
[404280591,1770027304561,-299.97,0.00012809,2]
[404280592,1770027304580,-25.63362848,0.00012809,2]
[404280593,1770027309632,-5000.01,0.00012744,2]
[404280594,1770027309752,-1969.94201,0.00012744,2]
[404280595,1770027309781,-1060.12598,0.00012744,2]
[404280596,1770027309861,-174.39637152,0.00012809,2]
[404280597,1770027309892,-500.0,0.00012809,2]
[404280598,1770027309924,-500.0,0.00012809,2]
[404280599,1770027309995,-2651.21725696,0.0001281,2]
[404280600,1770027310039,-5000.01,0.0001281,2]
[404280601,1770027310071,-5000.01,0.0001281,2]
[404280602,1770027310194,-5000.01,0.0001281,2]
[404280603,1770027310332,-5000.01,0.0001281,2]
[404280605,1770027315749,-5000.01,0.0001281,2]
[404280606,1770027315942,-5000.01,0.0001281,2]
[404280607,1770027316047,-5000.01,0.0001281,2]
[404280608,1770027327704,-5000.01,0.00012796,2]
[404280609,1770027327818,-5000.01,0.00012796,2]
[404280610,1770027327927,-5000.01,0.00012796,2]
[404280611,1770027328056,-5000.01,0.00012796,2]
[404280612,1770027328163,-5000.01,0.00012796,2]
[404280613,1770027328321,-5000.01,0.00012796,2]
[404280614,1770027337758,-5000.01,0.00012796,2]
[404280615,1770027337887,-5000.01,0.00012796,2]
[404280616,1770027338013,-5000.01,0.00012796,2]
[404280617,1770027338126,-5000.01,0.00012796,2]
[404280618,1770027346780,-5000.01,0.00012715,2]
[404280619,1770027346897,-5000.01,0.00012715,2]
[404280620,1770027347018,-393.19326896,0.00012715,2]
[404280621,1770027347042,-4213.62346208,0.00012715,2]
[404280622,1770027347133,-5000.01,0.00012715,2]
[404280623,1770027352811,-5000.01,0.00012715,2]
[404280624,1770027352892,-5000.01,0.00012715,2]
[404280625,1770027353034,-2302.54004726,0.00012715,2]
[404280626,1770027386168,-5000.01,0.00012731,2]
[404280627,1770027392056,-59.102736,0.00012731,2]
[404280628,1770027392087,-300.0,0.00012795,2]
[404280629,1770027392113,-300.0,0.00012796,2]
[404280630,1770027392174,-3681.804528,0.00012796,2]
[404280632,1770027425405,-300.0,0.00012795,2]
[404280633,1770027425439,-4400.01,0.00012796,2]
[404280634,1770027425601,-5000.01,0.00012796,2]
[404280635,1770027425716,-5000.01,0.00012796,2]
[404280636,1770027425913,-5000.01,0.00012796,2]
[404280637,1770027426032,-5000.01,0.00012796,2]
[404280638,1770027426168,-5000.01,0.00012796,2]
[404280639,1770027426319,-5000.01,0.00012796,2]
[404280640,1770027426609,-5000.01,0.00012796,2]
[404280641,1770027426744,-5000.01,0.00012796,2]
[404280642,1770027426877,-1094.9117157,0.00012796,2]
[404280643,1770027426905,-500.0,0.00012802,2]
[404280644,1770027426932,-165.34215074,0.00012805,2]
[404280645,1770027426970,-500.0,0.00012809,2]
[404280646,1770027427109,-479.50226712,0.00012809,2]
[404280647,1770027428264,-20.49773288,0.00012809,2]
[404280648,1770027428300,-500.0,0.00012809,2]
[404280649,1770027428335,-500.0,0.00012809,2]
[404280650,1770027428369,-374.92576597,0.00012809,2]
[404280651,1770027428399,-1025.44655546,0.00012809,2]
[404280652,1770027428497,-158.26989138,0.00012809,2]
[404280653,1770027437315,-151.0,0.00012802,2]
[404280654,1770027437346,-151.0,0.00012802,2]
[404280655,1770027437375,-151.0,0.00012802,2]
[404280656,1770027437402,-151.0,0.00012802,2]
[404280657,1770027437429,-500.0,0.00012809,2]
[404280658,1770027437515,-2792.01,0.0001281,2]
[404280659,1770027440346,-151.0,0.00012802,2]
[404280660,1770027440379,-151.0,0.00012802,2]
[404280661,1770027440407,-151.0,0.00012802,2]
[404280662,1770027440437,-151.0,0.00012802,2]
[404280663,1770027440467,-151.0,0.00012802,2]
[404280664,1770027440608,-500.0,0.00012802,2]
[404280665,1770027440618,-2990.01,0.0001281,2]
[404280666,1770027573841,-198.39137328,0.00012702,2]
[404280667,1770027573867,-500.0,0.00012706,2]
[404280668,1770027573893,-1103.22725344,0.0001271,2]
[404280669,1770027573946,-1396.77274656,0.0001271,2]
[404280670,1770027575114,-526.00152957,0.00012715,2]
[404280671,1770027575141,-457.36618656,0.00012772,2]
[404280672,1770027575185,-3033.27456774,0.00012772,2]
[404280673,1770027578136,-300.0,0.00012801,2]
[404280674,1770027578165,-150.0,0.00012801,2]
[404280675,1770027578193,-300.0,0.00012801,2]
[404280676,1770027584186,-500.0,0.00012802,2]
[404280677,1770027584213,-151.0,0.00012802,2]
[404280678,1770027584241,-151.0,0.00012802,2]
[404280679,1770027584268,-500.0,0.00012802,2]
[404280680,1770027584295,-500.0,0.00012802,2]
[404280681,1770027584323,-500.0,0.00012802,2]
[404280682,1770027584449,-500.0,0.00012802,2]
[404280683,1770027584477,-500.0,0.00012802,2]
[404280684,1770027584505,-500.0,0.00012802,2]
[404280685,1770027584532,-500.0,0.00012802,2]
[404280686,1770027584558,-200.0,0.00012802,2]
[404280687,1770027584586,-100.01,0.00012802,2]
[404280688,1770027584661,-399.99,0.00012802,2]
[404280689,1770027584687,-500.0,0.00012802,2]
[404280690,1770027584713,-500.0,0.00012802,2]
[404280691,1770027584742,-500.0,0.00012802,2]
[404280692,1770027584769,-500.0,0.00012802,2]
[404280693,1770027585006,-296.0,0.00012802,2]
[404280694,1770027585021,-204.0,0.00012802,2]
[404280695,1770027585031,-296.0,0.00012802,2]
[404280696,1770027585046,-200.03,0.00012802,2]
[404280697,1770027587234,-3.97,0.00012802,2]
[404280698,1770027587262,-500.0,0.00012802,2]
[404280699,1770027587290,-500.0,0.00012802,2]
[404280700,1770027587318,-500.0,0.00012802,2]
[404280701,1770027587346,-500.0,0.00012802,2]
[404280702,1770027587376,-492.07,0.00012802,2]
[404280703,1770027587463,-7.93,0.00012802,2]
[404280704,1770027587491,-500.0,0.00012802,2]
[404280705,1770027587518,-151.0,0.00012802,2]
[404280706,1770027587545,-151.0,0.00012802,2]
[404280707,1770027587572,-151.0,0.00012802,2]
[404280708,1770027587599,-151.0,0.00012802,2]
[404280709,1770027587625,-151.0,0.00012802,2]
[404280710,1770027587652,-151.0,0.00012802,2]
[404280711,1770027587679,-151.0,0.00012802,2]
[404280712,1770027587705,-151.0,0.00012802,2]
[404280713,1770027587731,-151.0,0.00012802,2]
[404280714,1770027587756,-151.0,0.00012802,2]
[404280715,1770027587785,-151.0,0.00012802,2]
[404280716,1770027587815,-151.0,0.00012802,2]
[404280717,1770027587842,-151.0,0.00012802,2]
[404280718,1770027588139,-7.93,0.00012802,2]
[404280719,1770027588152,-58.15,0.00012802,2]
[404280720,1770027590338,-84.92,0.00012802,2]
[404280721,1770027590369,-151.0,0.00012802,2]
[404280722,1770027590395,-151.0,0.00012802,2]
[404280723,1770027590421,-151.0,0.00012802,2]
[404280724,1770027590448,-151.0,0.00012802,2]
[404280725,1770027590474,-151.0,0.00012802,2]
[404280726,1770027590500,-151.0,0.00012802,2]
[404280727,1770027590526,-200.0,0.00012802,2]
[404280728,1770027590552,-388.17458479,0.00012802,2]
[404280729,1770027590715,-49.0,0.0001281,2]
[404280730,1770027590728,-1841.82083042,0.0001281,2]
[404280731,1770027593285,-5000.01,0.0001281,2]
[404280732,1770027596254,-5000.01,0.0001281,2]
[404280733,1770027599406,-5000.01,0.0001281,2]
[404280734,1770027599586,-5000.01,0.0001281,2]
[404280735,1770027599696,-5000.01,0.0001281,2]
[404280736,1770027599795,-5000.01,0.0001281,2]
[404280737,1770027599926,-5000.01,0.0001281,2]
[404280738,1770027602338,-1200.0,0.00012809,2]
[404280739,1770027602368,-300.0,0.00012809,2]
[404280740,1770027602439,-2000.01,0.0001281,2]
[404280741,1770027605501,-5000.01,0.0001281,2]
[404280742,1770027605615,-5000.01,0.0001281,2]
[404280743,1770027605754,-5000.01,0.0001281,2]
[404280744,1770027605876,-5000.01,0.0001281,2]
[404280745,1770027606040,-5000.01,0.0001281,2]
[404280746,1770027606194,-5000.01,0.0001281,2]
[404280747,1770027608599,-5000.01,0.0001281,2]
[404280748,1770027609176,-5000.01,0.0001281,2]
[404280749,1770027609300,-5000.01,0.0001281,2]
[404280750,1770027609441,-5000.01,0.0001281,2]
[404280751,1770027611403,-204.03115066,0.000128,2]
[404280752,1770027611438,-4591.94769868,0.0001281,2]
[404280753,1770027611543,-5000.01,0.0001281,2]
[404280754,1770027611672,-5000.01,0.0001281,2]
[404280755,1770027611833,-5000.01,0.0001281,2]
[404280756,1770027611962,-5000.01,0.0001281,2]
[404280757,1770027612067,-5000.01,0.0001281,2]
[404280758,1770027614372,-151.0,0.00012807,2]
[404280759,1770027614411,-4698.01,0.0001281,2]
[404280760,1770027614474,-5000.01,0.0001281,2]
[404280761,1770027614616,-5000.01,0.0001281,2]
[404280762,1770027614904,-5000.01,0.0001281,2]
[404280763,1770027617517,-5000.01,0.0001281,2]
[404280764,1770027617734,-5000.01,0.0001281,2]
[404280765,1770027617851,-5000.01,0.0001281,2]
[404280766,1770027617971,-5000.01,0.0001281,2]
[404280767,1770027618076,-5000.01,0.0001281,2]
[404280768,1770027618169,-5000.01,0.0001281,2]
[404280769,1770027620393,-5000.01,0.0001281,2]
[404280770,1770027620506,-5000.01,0.0001281,2]
[404280771,1770027620632,-5000.01,0.0001281,2]
[404280772,1770027620740,-5000.01,0.0001281,2]
[404280773,1770027623604,-5000.01,0.0001281,2]
[404280774,1770027623802,-5000.01,0.0001281,2]
[404280775,1770027623910,-5000.01,0.0001281,2]
[404280776,1770027624032,-5000.01,0.0001281,2]
[404280777,1770027624127,-5000.01,0.0001281,2]
[404280778,1770027626456,-2500.0,0.0001271,2]
[404280779,1770027626494,-0.01,0.0001281,2]
[404280780,1770027626575,-5000.01,0.0001281,2]
[404280781,1770027626687,-5000.01,0.0001281,2]
[404280782,1770027626795,-5000.01,0.0001281,2]
[404280783,1770027629490,-5000.01,0.0001281,2]
[404280784,1770027629609,-5000.01,0.0001281,2]
[404280785,1770027629725,-5000.01,0.0001281,2]
[404280786,1770027630071,-5000.01,0.0001281,2]
[404280787,1770027630140,-5000.01,0.0001281,2]
[404280788,1770027630161,-5000.01,0.0001281,2]
[404280789,1770027630191,-5000.01,0.0001281,2]
[404280790,1770027632578,-5000.01,0.0001281,2]
[404280791,1770027635525,-5000.01,0.0001281,2]
[404280792,1770027635653,-5000.01,0.0001281,2]
[404280793,1770027636058,-5000.01,0.0001281,2]
[404280794,1770027636075,-5000.01,0.0001281,2]
[404280795,1770027636091,-5000.01,0.0001281,2]
[404280796,1770027636115,-5000.01,0.0001281,2]
[404280797,1770027638562,-5000.01,0.0001281,2]
[404280798,1770027638700,-5000.01,0.0001281,2]
[404280800,1770027747288,-2074.38,0.00012482,2]
[404280801,1770027747334,-851.25,0.00012515,2]
[404280802,1770027747491,-1223.13,0.00012515,2]
[404280803,1770027747525,-479.37,0.00012548,2]
[404280804,1770027747586,-1595.01,0.00012548,2]
[404280805,1770027747698,-2074.38,0.00012581,2]
[404280806,1770027747783,-2074.38,0.00012613,2]
[404280807,1770027747836,-851.25,0.00012646,2]
[404280808,1770027747883,-1223.13,0.00012646,2]
[404280809,1770027747919,-479.37,0.00012679,2]
[404280810,1770027747989,-371.88,0.00012679,2]
[404280811,1770027748015,-1223.13,0.00012679,2]
[404280812,1770027748026,-851.25,0.00012696,2]
[404280813,1770027748174,-5000.01,0.00012696,2]
[404280814,1770027748202,-5000.01,0.00012696,2]
[404280815,1770027748239,-5000.01,0.00012696,2]
[404280816,1770027748315,-5000.01,0.00012696,2]
[404280817,1770027750160,-5000.01,0.00012696,2]
[404280818,1770027750319,-5000.01,0.00012696,2]
[404280819,1770027753254,-168.51560885,0.00012695,2]
[404280820,1770027753282,-500.0,0.00012695,2]
[404280821,1770027753310,-169.0654497,0.00012695,2]
[404280822,1770027753339,-210.82090167,0.00012695,2]
[404280823,1770027753368,-310.36200231,0.00012695,2]
[404280824,1770027753401,-500.0,0.00012695,2]
[404280825,1770027753432,-500.0,0.00012695,2]
[404280826,1770027753562,-500.0,0.00012695,2]
[404280827,1770027753594,-500.0,0.00012695,2]
[404280828,1770027753625,-500.0,0.00012695,2]
[404280829,1770027753656,-500.0,0.00012695,2]
[404280830,1770027753686,-500.0,0.00012695,2]
[404280831,1770027753836,-500.0,0.00012695,2]
[404280832,1770027753866,-500.0,0.00012695,2]
[404280833,1770027753898,-500.0,0.00012695,2]
[404280834,1770027753928,-500.0,0.00012695,2]
[404280835,1770027753958,-500.0,0.00012695,2]
[404280836,1770027754065,-321.15627426,0.00012695,2]
[404280837,1770027754095,-500.0,0.00012695,2]
[404280839,1770027754456,-321.17627426,0.00012696,2]
[404280840,1770027754490,-3357.69745148,0.00012696,2]
[404280841,1770027754535,-5000.01,0.00012696,2]
[404280842,1770027754560,-5000.01,0.00012696,2]
[404280847,1770027774471,-5000.01,0.00012696,2]
[404280848,1770027780380,-5000.01,0.00012696,2]
[404280985,1770028231453,-150.0,0.00011877,2]
[404280986,1770028231463,-150.0,0.00011877,2]
[404280987,1770028231510,-97.0,0.00011877,2]
[404280988,1770028231519,-500.0,0.00011949,2]
[404280989,1770028231529,-152.66564789,0.000125,2]
[404280990,1770028231540,-204.03115067,0.000125,2]
[404280991,1770028231549,-540455.29513204,0.0001251,2]
[404280992,1770028231564,-106807.26523303,0.0001251,2]
[404280993,1770028231576,-75698.22229684,0.0001251,2]
[404280994,1770028231587,-54940.47856384,0.0001251,2]
[404280995,1770028231599,-388.4,0.0001251,2]